{"text_format":"1","workbook":"xlsx","n_sheets":12,"sheets":["Калькулятор","Лист1","список ТСО","С1","Воздушные линии","Кабельные линии","Трансформаторные подстанции","Пункты секционирования","Источники питания","ставки за 1кВт","Расчет1","Расчет2"],"not_rendered":{"charts":0,"images":0,"macros":1,"external_links":1,"defined_names":6,"comments":0,"pivot_tables":0},"unopened":[],"bounds":{"document_bytes":16777216,"sheet_cells":100000,"rows_first":2000,"rows_last":500,"rows_between":2000,"halvings":0,"cell_chars":16384,"cell_head_chars":4096},"cells_cut":0,"cells_raw":0,"read":"whole","date_system":"1900"}

{"sheet":"Калькулятор","index":0,"n_rows":20,"n_cols":2,"rows_kept":20,"cut":false,"hidden":false,"merged":[[1,1,1,2],[19,1,19,2]]}
[]
[null,"Расчет платы за технологическое присоединение к электрическим сетям"]
[]
[null,"Наименование сетевой организации:"]
[]
[null,"Уровень напряжения, кВ:"]
[]
[null,"Максимальная мощность, кВт:"]
[]
[null,"Наличие мероприятий по строительству «последней мили» со стороны сетевой организации"]
[null,"Строительство воздушных линий"]
[null,"Строительство кабельных линий"]
[null,"Строительство трансформаторных подстанций"]
[null,"Строительство пунктов секционирования"]
[null,"Строительство центров питания"]
[]
[]
[]
[]
[null,"Внимание! Данные расчеты носят справочный характер и не могут являться окончательными для оплаты стоимости технологического присоединения. \nКалькулятор расчета платы за технологическое присоединение к электрическим сетям предназначен для примерного расчета стоимости размера платы за технологическое присоединение к электрическим сетям территориальных сетевых организаций Челябинской области."]

{"sheet":"Лист1","index":1,"n_rows":0,"n_cols":0,"rows_kept":0,"cut":false,"hidden":false,"merged":[]}

{"sheet":"список ТСО","index":2,"n_rows":75,"n_cols":2,"rows_kept":75,"cut":false,"hidden":true,"merged":[]}
["№ п/п","Полное (сокращенное) наименование территориальной сетевой организации (ТСО)"]
[1,"Филиал открытого акционерного общества «Межрегиональная распределительная сетевая компания Урала»-«Челябэнерго» (Филиал ОАО «МРСК Урала»-«Челябэнерго»)"]
[2,"Общество с ограниченной ответственностью «АЭС Инвест» (ООО «АЭС Инвест»)"]
[3,"Открытое акционерное общество «Автомобильный завод «Урал» (ОАО «Автомобильный завод «Урал», ОАО «АЗ «Урал»)"]
[4,"Акционерное общество «Завод «Пластмасс» (АО «Завод «Пластмасс»)"]
[5,"Акционерное общество «Оборонэнерго» Филиал «Уральский» (АО «Оборонэнерго» Филиал «Уральский»)"]
[6,"Акционерное общество «Саткинский чугуноплавильный завод» (АО «СЧПЗ»)"]
[7,"Публичное акционерное общество «Челябинский машиностроительный завод автомобильных прицепов «Уралавтоприцеп» (ПАО «Уралавтоприцеп»)"]
[8,"Акционерное общество «Челябинское авиапредприятие» (АО «ЧАП»)"]
[9,"Акционерное общество «Челябинский электрометаллургический комбинат» (АО «ЧЭМК»)"]
[10,"Акционерное общество «Энергосетевая Компания ЧТПЗ» (АО «ЭСК ЧТПЗ» )"]
[11,"Закрытое акционерное общество  «Челябинский трубный опытно-экспериментальный завод» (ЗАО  «ЧТОЭЗ»)"]
[12,"Закрытое акционерное общество «Электросеть» (ЗАО «Электросеть»)"]
[13,"Муниципальное многоотраслевое предприятие коммунального хозяйства (ММПКХ)"]
[14,"Муниципальное предприятие  «Горэлектросеть» г. Магнитогорска (МП  «Горэлектросеть» г. Магнитогорска)"]
[15,"Муниципальное унитарное предприятие «Городская управляющая компания» (МУП «ГУК»)"]
[16,"Муниципальное унитарное предприятие «Копейские электрические сети» (МУП «КЭС»)"]
[17,"Муниципальное унитарное предприятие «Многоотраслевое производственное объединение энергосетей» города Трехгорного (МУП «МПОЭ» г. Трехгорного)"]
[18,"Муниципальное унитарное предприятие «Производственное объединение водоснабжения и водоотведения» г. Челябинска (МУП «ПОВВ»)"]
[19,"Муниципальное унитарное предприятие «Челябинский городской электрический транспорт» (МУП «ЧелябГЭТ»)"]
[20,"Муниципальное унитарное предприятие «Электротепловые сети» (МУП «ЭТС»)"]
[21,"Открытое акционерное общество «Вишневогорский горно-обогатительный комбинат» (ОАО «Вишневогорский ГОК»)"]
[22,"Открытое акционерное общество «Магнитогорский метизно-калибровочный завод «ММК-Метиз» (ОАО «ММК-Метиз»)"]
[23,"Открытое акционерное общество «Магнитогорский металлургический комбинат» (ОАО «ММК»)"]
[24,"Открытое акционерное общество «Российские железные дороги» (Куйбышевская дирекция по энергообеспечению - структурное подразделение Трансэнерго - филиала открытого акционерного общества «Российские железные дороги») (ОАО «РЖД» (Куйбышевская дирекция по энергообеспечению – структурное подразделение Трансэнерго – филиала ОАО «РЖД»)"]
[25,"Открытое акционерное общество «Российские железные дороги» (Южно-Уральская дирекция по энергообеспечению – структурное подразделение Трансэнерго – филиала открытого акционерного общества «Российские железные дороги») (ОАО «РЖД» (Южно-Уральская дирекция по энергообеспечению – структурное подразделение Трансэнерго – филиала ОАО «РЖД»)"]
[26,"Открытое акционерное общество «Трансэнерго» (ОАО «Трансэнерго»)"]
[27,"Открытое акционерное общество «Тургоякское рудоуправление» (ОАО «ТРУ»)"]
[28,"Открытое акционерное общество «Челябинская электросетевая компания» (ОАО «ЧЭК»)"]
[29,"Открытое акционерное общество «Электромашина» (ОАО «Электромашина»)"]
[30,"Открытое акционерное общество «Энергопром-Челябинский электродный завод» (ОАО «ЭПМ-ЧЭЗ», ОАО «ЭНЕРГОПРОМ-ЧЭЗ»)"]
[31,"Общество с ограниченной ответственностью «АТЭК74»  (ООО «АТЭК74»)"]
[32,"Общество с ограниченной ответственностью «Башкирская сетевая компания» (ООО «БСК»)"]
[33,"Общество с ограниченной ответственностью «Вектор ТК» (ООО «Вектор ТК»)"]
[34,"Общество с ограниченной ответственностью «Вектор ТС» (ООО «Вектор ТС»)"]
[35,"Общество с ограниченной ответственностью «Газпром энерго» Приуральский филиал (OOO «Газпром энерго» Приуральский филиал)"]
[36,"Общество с ограниченной ответственностью «Златэнерготелеком» (ООО «Златэнерготелеком»)"]
[37,"Общество с ограни ченной ответственностью «Интернешенел Билдинг Констракшен» (ООО «ИБК»)"]
[38,"Общество с ограниченной ответственностью «Каслинская ЭнергоСбытовая Компания» (ООО «Каслинская ЭнергоСбытовая Компания»)"]
[39,"Общество с ограниченной ответственностью «Катав-Ивановский литейный завод»  (ООО «КЛЗ»)"]
[40,"Общество с ограниченной ответственностью Завод стройиднустрии «КЕММА» (ООО «КЕММА»)"]
[41,"Общество с ограниченной ответственностью «Магнитогорская сетевая компания» (ООО «МСК»)"]
[42,"Общество с ограниченной ответственностью «Металлстрой» (ООО «Металлстрой»)"]
[43,"Общество с ограниченной ответственностью «Механический завод» (ООО «Механический завод»)"]
[44,"Общество с ограниченной ответственностью «МИЗ-Энерго» (ООО «МИЗ-Энерго»)"]
[45,"Общество с ограниченной ответственностью «Миассэнергосервис» (ООО «Миассэнергосервис»)"]
[46,"Общество с ограниченной ответственностью «МиассЭнергоСтрой» (ООО «МЭС»)"]
[47,"Общество с ограниченной ответственностью «Объединенная электросетевая компания - Челябинск» (ООО «ОЭсК - Челябинск»)"]
[48,"Общество с ограниченной ответственностью «РАЗВИТИЕ» (ООО «РАЗВИТИЕ»)"]
[49,"Общество с ограниченной ответственностью «Региональная сетевая компания» (ООО «РСК»)"]
[50,"Общество с ограниченной ответственностью «Сети и системы» (ООО «Сети и системы»)"]
[51,"Общество с ограниченной ответственностью «Системы Передачи Электроэнергии» (Общество с ограниченной ответственностью «СПЭ»)"]
[52,"Общество с ограниченной ответственностью «СИТИ-ПАРК Энерго» (ООО «СИТИ-ПАРК Энерго»)"]
[53,"Общество с ограниченной ответственностью «СПЕКТР-ЭЛЕКТРО» (ООО «СПЕКТР-ЭЛЕКТРО»)"]
[54,"Общество с ограниченной ответственностью «ТДК» (ООО «ТДК»)"]
[55,"Общество с ограниченной ответственностью «ТЕХНОСЕРВИС-ПЭ» (ООО «ТЕХНОСЕРВИС-ПЭ»)"]
[56,"Общество с ограниченной ответственностью «Тепловые электрические сети и системы» (ООО «ТЭСиС»)"]
[57,"Общество с ограниченной ответственностью «ТРАНС» (ООО «ТРАНС»)"]
[58,"Общество с ограниченной ответственностью «Трансэнерго» (ООО «Трансэнерго»)"]
[59,"Общество с ограниченной ответственностью «Управление энергоснабжения и связи» (ООО «УЭС»)"]
[60,"Общество с ограниченной ответственностью «Э-Контакт» (ООО «Э-Контакт»)"]
[61,"Общество с ограниченной ответственностью «ЭДС» (ООО «ЭДС»)"]
[62,"Общество с ограниченной ответственностью «Электро ТК» (ООО «Электро ТК»)"]
[63,"Общество с ограниченной ответственностью «Электросетевая компания» (ООО «ЭСК») г. Екатеринбург"]
[64,"Общество с ограниченной ответственностью «Электросетевая компания» г. Сатка (ООО «Электросетевая компания»)"]
[65,"Общество с ограниченной ответственностью «Электро-транспорт» (ООО «Электро-транспорт»)"]
[66,"Общество с ограниченной ответственностью «ЭНЕРГЕТИЧЕСКАЯ КОМПАНИЯ АЛЬТАИР» (ООО «ЭНЕРГЕТИЧЕСКАЯ КОМПАНИЯ АЛЬТАИР»)"]
[67,"Общество с ограниченной ответственностью «Энергоснабжающая сетевая компания» (ООО «ЭСК»)"]
[68,"Общество с ограниченной ответственностью «Энерготехсервис» (ООО «ЭТС»)"]
[69,"Общество с ограниченной ответственностью «Эффект ТК» (ООО «Эффект ТК»)"]
[70,"Общество с ограниченной ответственностью «Южноуральская сетевая компания» (ООО «ЮСК»)"]
[71,"Публичное акционерное общество «Челябинский завод профилированного стального настила» (ПАО «ЧЗПСН-ПРОФНАСТИЛ»)"]
[72,"Федеральное государственное унитарное предприятие  «Приборостроительный завод» (ФГУП «ПСЗ», ФГУП «Приборостроительный завод»)"]
[73,"Федеральное государственное унитарное предприятие  «Производственное объединение «Маяк» (ФГУП «ПО «Маяк»)"]
[74,"Федеральное государственное унитарное предприятие  «УСТЬ-КАТАВСКИЙ ВАГОНОСТРОИТЕЛЬНЫЙ ЗАВОД имени С.М. Кирова» – филиал федерального государственного унитарного предприятия «ГОСУДАРСТВЕННЫЙ КОСМИЧЕСКИЙ НАУЧНО-ПРОИЗВОДСТВЕННЫЙ ЦЕНТР имени М.В. Хруничева» "]

{"sheet":"С1","index":3,"n_rows":10,"n_cols":5,"rows_kept":10,"cut":false,"hidden":true,"merged":[[2,1,2,2],[0,0,0,4]]}
["Стандартизированная тарифная ставка за технологическое присоединение к электрическим сетям территориальных сетевых организаций Челябинской области на 2017 год на покрытие расходов за технологическое присоединение энергопринимающих устройств потребителей электрической энергии, объектов электросетевого хозяйства, принадлежащих сетевым  рганизациям и иным лицам (С1), по мероприятиям, указанным в пункте 16 Методических указаний (кроме подпунктов «б» и «в»)"]
[]
["№ п/п","Наименование стандартизированной тарифной ставки",null,"Единица измерения","Значение (без учета НДС)"]
[1,2,3,4,5]
[1,"С1","Стандартизированная тарифная ставка на покрытие расходов на технологическое присоединение энергопринимающих устройств потребителей электрической энергии, объектов электросетевого хозяйства, принадлежащих сетевым организациям и иным лицам, по мероприятиям, указанным в пункте 16 Методических указаний (кроме подпунктов «б» и «в»), ","руб. за одно присоединение",17566.63]
[null,null,"в том числе:"]
[1.1000000000000001,"С1.1 ","Подготовка и выдача сетевой организацией технических условий Заявителю (ТУ)","руб. за одно присоединение",4571.91]
[1.2,"С1.2 ","Проверка сетевой организацией выполнения Заявителем ТУ","руб. за одно присоединение",2078.39]
[1.3,"С1.3 ","Участие сетевой организации в осмотре должностным лицом органа федерального государственного энергетического надзора присоединяемых Устройств Заявителя","руб. за одно присоединение",2853.53]
[1.4,"С1.4 ","Фактические действия по присоединению и обеспечению работы Устройств в электрической сети","руб. за одно присоединение",8062.8]

{"sheet":"Воздушные линии","index":4,"n_rows":66,"n_cols":8,"rows_kept":66,"cut":false,"hidden":true,"merged":[[0,0,0,7],[6,1,6,7],[7,1,7,7],[14,1,14,7],[20,1,20,7],[31,1,31,7],[26,1,26,7],[21,1,21,7],[36,1,36,7],[42,1,42,7],[37,1,37,7],[65,1,65,3],[47,1,47,7],[48,1,48,7],[55,1,55,7],[63,1,63,3],[64,1,64,3]]}
["Стандартизированная тарифная ставка на покрытие расходов сетевой организации на строительство воздушных линий электропередачи"]
[]
[]
[]
[null,"Наименование стандартизированной тарифной ставки","Размер ставки для заявителей с максимальной мощностью свышее 150 кВт, руб./км","Длина линии, км","Размер ставки для  заявителей с максимальной мощностью не более 150 кВт, руб./км\nс 01.01.2017г. \nпо 30.09.2017г.","Длина линии, км","Размер ставки для заявителей с максимальной мощностью не более 150 кВт, руб./км\nс 01.10.2017г. \nпо 31.12.2017г.","Длина линии, км"]
["№ п/п",1,2,3,4,5,6,7]
[1,"С2 (1кВ)   - Стандартизированная тарифная ставка на покрытие расходов сетевой организации на строительство воздушных линий электропередачи на уровне напряжения до 1кВ в расчете на 1 км линий"]
["1.1."," - прокладка воздушной линии неизолированным проводом"]
["1.1.1","сечение 16мм2",140575.89000000001,null,70287.945000000007,null,0]
["1.1.2","сечение 25мм2",146467.62,null,73233.81,null,0]
["1.1.3","сечение 35мм2",149396.87,null,74698.434999999998,null,0]
["1.1.4","сечение 50мм2",155372.95000000001,null,77686.475000000006,null,0]
["1.1.5","сечение 70мм2",160032.65,null,80016.324999999997,null,0]
["1.1.6","сечение 95мм2",165155.01,null,82577.505000000005,null,0]
["1.2"," - прокладка воздушной линии изолированным проводом"]
["1.2.1","сечение 35мм2 и менее",173799.62,null,86899.81,null,0]
["1.2.2","сечение 50мм2",184767.69,null,92383.845000000001,null,0]
["1.2.3","сечение 70мм2",200260,null,100130,null,0]
["1.2.4","сечение 95мм2",206338.32,null,103169.16,null,0]
["1.2.5","сечение 120мм2",222646.01,null,111323.005,null,0]
["2","С2 (6-10кВ) - Стандартизированная тарифная ставка на покрытие расходов сетевой организации на строительство воздушных линий электропередачи на уровне напряжения 6-10кВ в расчете на 1 км линий"]
["2.1"," - прокладка воздушной линии неизолированным проводом"]
["2.1.1","сечение 35мм2 и менее",158419.78,null,79209.89,null,0]
["2.1.2","сечение 50мм2",164186.26,null,82093.13,null,0]
["2.1.3","сечение 70мм2",172915.22,null,86457.61,null,0]
["2.1.4","сечение 95мм2",185273.79,null,92636.895000000004,null,0]
["2.2"," - прокладка воздушной линии изолированным самонесущим проводом в одноцепном исполнении"]
["2.2.1","сечение 50мм2 и менее",180800.68,null,90400.34,null,0]
["2.2.2","сечение 70мм2",194232.8,null,97116.4,null,0]
["2.2.3","сечение 95мм2",211105.38,null,105552.69,null,0]
["2.2.4","сечение 120мм2",233090.1,null,116545.05,null,0]
["2.3"," - прокладка воздушной линии изолированным самонесущим проводом в двухцепном исполнении"]
["2.3.1","сечение 50мм2 и менее",205177.24226965127,null,102588.62113482563,null,0]
["2.3.2","сечение 70мм2",220420.35606454976,null,110210.17803227488,null,0]
["2.3.3","сечение 95мм2",239567.79198334206,null,119783.89599167103,null,0]
["2.3.4","сечение 120мм2",264516.61530452897,null,132258.30765226448,null,0]
["3","С2 (35кВ) -Стандартизированная тарифная ставка на покрытие расходов сетевой организации на строительство воздушных линий электропередачи на уровне напряжения 35кВ в расчете на 1 км линий"]
["3.1"," - прокладка воздушной линии неизолированным проводом в одноцепном исполнении"]
["3.1.1","сечение 70мм2 и менее",1996418.7327823692,null,998209.36639118462,null,0]
["3.1.2","сечение 95мм2",1996418.7327823692,null,998209.36639118462,null,0]
["3.1.3","сечение 120мм2",1996418.7327823692,null,998209.36639118462,null,0]
["3.1.4","сечение 150мм2",1996418.7327823692,null,998209.36639118462,null,0]
["3.2"," - прокладка воздушной линии неизолированным проводом в двухцепном исполнении"]
["3.2.1","сечение 70мм2 и менее",2211570.24793388,null,1105785.1239669421,null,0]
["3.2.2","сечение 95мм2",2211570.2479338842,null,1105785.1239669421,null,0]
["3.2.3","сечение 120мм2",2211570.2479338842,null,1105785.1239669421,null,0]
["3.2.4","сечение 150мм2",2211570.2479338842,null,1105785.1239669421,null,0]
["4","С2 (110кВ) - Стандартизированная тарифная ставка на покрытие расходов сетевой организации на строительство воздушных линий электропередачи на уровне напряжения 110кВ в расчете на 1 км линий"]
["4.1"," - прокладка воздушной линии изолированным проводом в одноцепном исполнении"]
["4.1.1","сечение 70мм2 и менее",2064022.0385674932,null,1032011.0192837466,null,0]
["4.1.2","сечение 95мм2",2064022.0385674932,null,1032011.0192837466,null,0]
["4.1.3","сечение 120мм2",2064022.0385674932,null,1032011.0192837466,null,0]
["4.1.4","сечение 150мм2",2064022.0385674932,null,1032011.0192837466,null,0]
["4.1.5","сечение 185мм2",2277796.1432506889,null,1138898.0716253445,null,0]
["4.1.6","сечение 240мм2",2277796.1432506889,null,1138898.0716253445,null,0]
["4.2"," - прокладка воздушной линии изолированным проводом в двухцепном исполнении"]
["4.2.1","сечение 70мм2 и менее",2328209.3663911847,null,1164104.6831955924,null,0]
["4.2.2","сечение 95мм2",2328209.3663911847,null,1164104.6831955924,null,0]
["4.2.3","сечение 120мм2",2328209.3663911847,null,1164104.6831955924,null,0]
["4.2.4","сечение 150мм2",2328209.3663911847,null,1164104.6831955924,null,0]
["4.2.5","сечение 185мм2",2501212.1212121211,null,1250606.0606060605,null,0]
["4.2.6","сечение 240мм2",2501212.1212121211,null,1250606.0606060605,null,0]
[]
[null,"Примечания:"]
[null,"ВЛ - воздушная линия."]
[null,"Коэффициент перевода для воздушной прокладки провода с алюминиевыми жилами = 3,78"]

{"sheet":"Кабельные линии","index":5,"n_rows":268,"n_cols":8,"rows_kept":268,"cut":false,"hidden":true,"merged":[[132,1,132,7],[118,1,118,7],[104,1,104,7],[0,0,0,7],[193,1,193,7],[182,1,182,7],[171,1,171,7],[160,1,160,7],[146,1,146,7],[248,1,248,7],[240,1,240,7],[232,1,232,7],[218,1,218,7],[205,1,205,7],[265,1,265,3],[266,1,266,3],[267,1,267,3],[6,1,6,7],[7,1,7,7],[103,1,103,7],[204,1,204,7],[231,1,231,7],[19,1,19,7],[31,1,31,7],[43,1,43,7],[55,1,55,7],[67,1,67,7],[79,1,79,7],[91,1,91,7],[256,1,256,7]]}
["Стандартизированная тарифная ставка на покрытие расходов сетевой организации на строительство кабельных линий электропередачи"]
[]
[]
[]
[null,"Наименование стандартизированной тарифной ставки","Размер ставки для заявителей с максимальной мощностью свышее 150 кВт, руб./км","Длина линии, км","Размер ставки для  заявителей с максимальной мощностью не более 150 кВт, руб./км\nс 01.01.2017г. \nпо 30.09.2017г.","Длина линии, км","Размер ставки для заявителей с максимальной мощностью не более 150 кВт, руб./км\nс 01.10.2017г. \nпо 31.12.2017г.","Длина линии, км"]
["№ п/п",1,2,3,4,5,6,7]
[5,"С3 (1кВ) Стандартизированная тарифная ставка на покрытие расходов сетевой организации на строительство кабельных линий электропередачи на уровне напряжения 0,4кВ в расчете на 1 км линий"]
["5.1","- подземная прокладка в траншее кабеля с алюминиевыми жилами марки:"]
["5.1.1","сечение жилы 10 мм2",160348.27600000001,null,80174.138000000006,null,0]
["5.1.2","сечение жилы 16 мм2",165397.397,null,82698.698499999999,null,0]
["5.1.3","сечение жилы 25 мм2",169967.74300000002,null,84983.871500000008,null,0]
["5.1.4","сечение жилы 35 мм2",173985.29500000001,null,86992.647500000006,null,0]
["5.1.5","сечение жилы 50 мм2",186049.52300000002,null,93024.761500000008,null,0]
["5.1.6","сечение жилы 70 мм2",195685.171,null,97842.585500000001,null,0]
["5.1.7","сечение жилы 95 мм2",208880.41900000002,null,104440.20950000001,null,0]
["5.1.8","сечение жилы 120 мм2",221520.56299999999,null,110760.2815,null,0]
["5.1.9","сечение жилы 150 мм2",232596.59115000002,null,116298.29557500001,null,0]
["5.1.10","сечение жилы 185 мм2",244226.42070750002,null,122113.21035375001,null,0]
["5.1.11","сечение жилы 240 мм2",256437.74174287505,null,128218.87087143752,null,0]
["5.2","- подземная прокладка в траншее кабеля с медными жилами марки:"]
["5.2.1","сечение жилы 10 мм2",219799.74500000002,null,109899.87250000001,null,0]
["5.2.2","сечение жилы 16 мм2",235738.12900000004,null,117869.06450000002,null,0]
["5.2.3","сечение жилы 25 мм2",262699.92100000003,null,131349.96050000002,null,0]
["5.2.4","сечение жилы 35 мм2",292939.11900000001,null,146469.5595,null,0]
["5.2.5","сечение жилы 50 мм2",351509.36699999997,null,175754.68349999998,null,0]
["5.2.6","сечение жилы 70 мм2",405867.77,null,202933.88500000001,null,0]
["5.2.7","сечение жилы 95 мм2",480047.96400000004,null,240023.98200000002,null,0]
["5.2.8","сечение жилы 120 мм2",552731.68500000006,null,276365.84250000003,null,0]
["5.2.9","сечение жилы 150 мм2",630114.12089999998,null,315057.06044999999,null,0]
["5.2.10","сечение жилы 185 мм2",718330.09782599995,null,359165.04891299998,null,0]
["5.2.11","сечение жилы 240 мм2",818896.31152163981,null,409448.15576081991,null,0]
["5.3","- подземная прокладка в траншее 2-х кабелей с алюминиевыми жилами марки:"]
["5.3.1","сечение жилы 10 мм2",295018.43800000002,null,147509.21900000001,null,0]
["5.3.2","сечение жилы 16 мм2",305847.56400000001,null,152923.78200000001,null,0]
["5.3.3","сечение жилы 25 мм2",315166.34600000002,null,157583.17300000001,null,0]
["5.3.4","сечение жилы 35 мм2",323717.24,null,161858.62,null,0]
["5.3.5","сечение жилы 50 мм2",341670.17500000005,null,170835.08750000002,null,0]
["5.3.6","сечение жилы 70 мм2",361526.64900000003,null,180763.32450000002,null,0]
["5.3.7","сечение жилы 95 мм2",389089.8,null,194544.9,null,0]
["5.3.8","сечение жилы 120 мм2",414920.57200000004,null,207460.28600000002,null,0]
["5.3.9","сечение жилы 150 мм2",430303.69362750003,null,215151.84681375002,null,0]
["5.3.10","сечение жилы 185 мм2",451818.87830887508,null,225909.43915443754,null,0]
["5.3.11","сечение жилы 240 мм2",474409.82222431886,null,237204.91111215943,null,0]
["5.4","- подземная прокладка в траншее 2-х кабелей с медными жилами марки:"]
["5.4.1","сечение жилы 10 мм2",308044.462,null,154022.231,null,0]
["5.4.2","сечение жилы 16 мм2",332116.23499999999,null,166058.11749999999,null,0]
["5.4.3","сечение жилы 25 мм2",386255.28700000001,null,193127.64350000001,null,0]
["5.4.4","сечение жилы 35 мм2",436554.88800000004,null,218277.44400000002,null,0]
["5.4.5","сечение жилы 50 мм2",513820.30700000003,null,256910.15350000001,null,0]
["5.4.6","сечение жилы 70 мм2",640539.65800000005,null,320269.82900000003,null,0]
["5.4.7","сечение жилы 95 мм2",766740.4360000001,null,383370.21800000005,null,0]
["5.4.8","сечение жилы 120 мм2",909090.78700000013,null,454545.39350000006,null,0]
["5.4.9","сечение жилы 150 мм2",1165711.1236650001,null,582855.56183250004,null,0]
["5.4.10","сечение жилы 185 мм2",1328910.6809781,null,664455.34048905002,null,0]
["5.4.11","сечение жилы 240 мм2",1514958.176315034,null,757479.08815751702,null,0]
["5.5","- устройство перехода кабельной линии под автомобильной дорогой, железнодорожными путями плетью из 1 трубы с затягиванием в нее 3-х кабелей с алюминиевыми жилами марки:"]
["5.5.1","сечение жилы 10 мм2",977373.4850000001,null,488686.74250000005,null,0]
["5.5.2","сечение жилы 16 мм2",987319.08,null,493659.54,null,0]
["5.5.3","сечение жилы 25 мм2",999554.45700000005,null,499777.22850000003,null,0]
["5.5.4","сечение жилы 35 мм2",1020833.385,null,510416.6925,null,0]
["5.5.5","сечение жилы 50 мм2",1074793.9730000002,null,537396.98650000012,null,0]
["5.5.6","сечение жилы 70 мм2",1188219.9010000001,null,594109.95050000004,null,0]
["5.5.7","сечение жилы 95 мм2",1380123.4369999999,null,690061.71849999996,null,0]
["5.5.8","сечение жилы 120 мм2",1601748.0930000001,null,800874.04650000005,null,0]
["5.5.9","сечение жилы 150 мм2",1713870.4595100002,null,856935.22975500009,null,0]
["5.5.10","сечение жилы 185 мм2",1833841.3916757004,null,916920.69583785022,null,0]
["5.5.11","сечение жилы 240 мм2",1962210.2890929997,null,981105.14454649983,null,0]
["5.6","- устройство перехода кабельной линии под автомобильной дорогой, железнодорожными путями плетью из 3 труб с затягиванием в нее 3-х кабелей с алюминиевыми жилами марки:"]
["5.6.1","сечение жилы 10 мм2",1389606.4380000001,null,694803.21900000004,null,0]
["5.6.2","сечение жилы 16 мм2",1440722.118,null,720361.05900000001,null,0]
["5.6.3","сечение жилы 25 мм2",1463041.8660000002,null,731520.93300000008,null,0]
["5.6.4","сечение жилы 35 мм2",1498360.2590000001,null,749180.12950000004,null,0]
["5.6.5","сечение жилы 50 мм2",1875876.1780000001,null,937938.08900000004,null,0]
["5.6.6","сечение жилы 70 мм2",2559716.1260000002,null,1279858.0630000001,null,0]
["5.6.7","сечение жилы 95 мм2",3669851.6140000005,null,1834925.8070000003,null,0]
["5.6.8","сечение жилы 120 мм2",6322084.8020000011,null,3161042.4010000005,null,0]
["5.6.9","сечение жилы 150 мм2",7902606.0025000013,null,3951303.0012500007,null,0]
["5.6.10","сечение жилы 185 мм2",9878257.5031250007,null,4939128.7515625004,null,0]
["5.6.11","сечение жилы 240 мм2",12347821.878906252,null,6173910.9394531259,null,0]
["5.7","- устройство перехода кабельной линии под автомобильной дорогой, железнодорожными путями плетью из 1 трубы с затягиванием в нее 3-х кабелей с медными жилами марки:"]
["5.7.1","сечение жилы 10 мм2",854189.84200000006,null,427094.92100000003,null,0]
["5.7.2","сечение жилы 16 мм2",870245.66200000013,null,435122.83100000006,null,0]
["5.7.3","сечение жилы 25 мм2",907642.76900000009,null,453821.38450000004,null,0]
["5.7.4","сечение жилы 35 мм2",992688.78500000003,null,496344.39250000002,null,0]
["5.7.5","сечение жилы 50 мм2",1030185.6180000001,null,515092.80900000007,null,0]
["5.7.6","сечение жилы 70 мм2",1188071.2140000002,null,594035.60700000008,null,0]
["5.7.7","сечение жилы 95 мм2",1423304.0140000002,null,711652.0070000001,null,0]
["5.7.8","сечение жилы 120 мм2",1651695.628,null,825847.81400000001,null,0]
["5.7.9","сечение жилы 150 мм2",1816865.1908000002,null,908432.59540000011,null,0]
["5.7.10","сечение жилы 185 мм2",1998551.7098800004,null,999275.85494000022,null,0]
["5.7.11","сечение жилы 240 мм2",2198406.8808680004,null,1099203.4404340002,null,0]
["5.8","- устройство перехода кабельной линии под автомобильной дорогой, железнодорожными путями плетью из 3 труб с затягиванием в нее 3-х кабелей с медными жилами марки:"]
["5.8.1","сечение жилы 10 мм2",1232429.176,null,616214.58799999999,null,0]
["5.8.2","сечение жилы 16 мм2",1298946.165,null,649473.08250000002,null,0]
["5.8.3","сечение жилы 25 мм2",1398771.5060000001,null,699385.75300000003,null,0]
["5.8.4","сечение жилы 35 мм2",1501030.1680000001,null,750515.08400000003,null,0]
["5.8.5","сечение жилы 50 мм2",1947601.4910000002,null,973800.74550000008,null,0]
["5.8.6","сечение жилы 70 мм2",2903112.5640000007,null,1451556.2820000004,null,0]
["5.8.7","сечение жилы 95 мм2",4241470.2990000006,null,2120735.1495000003,null,0]
["5.8.8","сечение жилы 120 мм2",6266458.8690000009,null,3133229.4345000004,null,0]
["5.8.9","сечение жилы 150 мм2",7958402.7636300009,null,3979201.3818150004,null,0]
["5.8.10","сечение жилы 185 мм2",10107171.509810101,null,5053585.7549050506,null,0]
["5.8.11","сечение жилы 240 мм2",12836107.817458829,null,6418053.9087294145,null,0]
["6","С3 (6-10кВ) Стандартизированная тарифная ставка на покрытие расходов сетевой организации на строительство кабельных линий электропередачи на уровне напряжения 6-10кВ в расчете на 1 км линий"]
["6.1","- подземная прокладка в траншее кабеля с алюминиевой жилой "]
["6.1.1","сечение жилы 35 мм2",533130.14700000011,null,266565.07350000006,null,0]
["6.1.2","сечение жилы 50 мм2",550572.67099999997,null,275286.33549999999,null,0]
["6.1.3","сечение жилы 70 мм2",604725.59400000004,null,302362.79700000002,null,0]
["6.1.4","сечение жилы 95 мм2",671381.777,null,335690.8885,null,0]
["6.1.5","сечение жилы 120 мм2",691079.18,null,345539.59,null,0]
["6.1.6","сечение жилы 150 мм2",777396.96100000013,null,388698.48050000006,null,0]
["6.1.7","сечение жилы 185 мм2",809728.85400000005,null,404864.42700000003,null,0]
["6.1.8","сечение жилы 240 мм2",857904.55300000007,null,428952.27650000004,null,0]
["6.1.9","сечение жилы 300 мм2",916543.38600000006,null,458271.69300000003,null,0]
["6.1.10","сечение жилы 400 мм2",1052122.5550000002,null,526061.27750000008,null,0]
["6.1.11","сечение жилы 500 мм2",1157040.1259999999,null,578520.06299999997,null,0]
["6.1.12","сечение жилы 630 мм2",1376562.9020000002,null,688281.451,null,0]
["6.1.13","сечение жилы 800 мм2",1370180.0420000001,null,685090.02100000007,null,0]
["6.2","- подземная прокладка в траншее кабеля с медной жилой "]
["6.2.1","сечение жилы 35 мм2",564632.26600000006,null,282316.13300000003,null,0]
["6.2.2","сечение жилы 50 мм2",618889.30400000012,null,309444.65200000006,null,0]
["6.2.3","сечение жилы 70 мм2",726939.02600000007,null,363469.51300000004,null,0]
["6.2.4","сечение жилы 95 мм2",862426.82900000003,null,431213.41450000001,null,0]
["6.2.5","сечение жилы 120 мм2",952562.853,null,476281.4265,null,0]
["6.2.6","сечение жилы 150 мм2",1110380.8650000002,null,555190.43250000011,null,0]
["6.2.7","сечение жилы 185 мм2",1248025.328,null,624012.66399999999,null,0]
["6.2.8","сечение жилы 240 мм2",1464609.7509999999,null,732304.87549999997,null,0]
["6.2.9","сечение жилы 300 мм2",1698849.9110000001,null,849424.95550000004,null,0]
["6.2.10","сечение жилы 400 мм2",2085614.443,null,1042807.2215,null,0]
["6.2.11","сечение жилы 500 мм2",2508887.4250000003,null,1254443.7125000001,null,0]
["6.2.12","сечение жилы 630 мм2",3118417.4450000003,null,1559208.7225000001,null,0]
["6.2.13","сечение жилы 800 мм2",3805102.2460000003,null,1902551.1230000001,null,0]
["6.3"," - подземная прокладка в траншее 4-х и более кабелей с алюминиевыми жилами"]
["6.3.1","сечение жилы 35 мм2",1042950.1084598697,null,521475.05422993487,null,0]
["6.3.2","сечение жилы 50 мм2",1090780.9110629067,null,545390.45553145336,null,0]
["6.3.3","сечение жилы 70 мм2",1238503.2537960953,null,619251.62689804763,null,0]
["6.3.4","сечение жилы 95 мм2",1420390.4555314532,null,710195.22776572662,null,0]
["6.3.5","сечение жилы 120 мм2",1474078.0911062905,null,737039.04555314523,null,0]
["6.3.6","сечение жилы 150 мм2",1709327.5488069414,null,854663.77440347068,null,0]
["6.3.7","сечение жилы 185 мм2",1797505.4229934923,null,898752.71149674617,null,0]
["6.3.8","сечение жилы 240 мм2",1928958.7852494575,null,964479.39262472873,null,0]
["6.3.9","сечение жилы 300 мм2",2088720.1735357917,null,1044360.0867678958,null,0]
["6.3.10","сечение жилы 400 мм2",2458351.4099783078,null,1229175.7049891539,null,0]
["6.3.11","сечение жилы 500 мм2",2744685.4663774404,null,1372342.7331887202,null,0]
["6.3.12","сечение жилы 630 мм2",3343383.9479392623,null,1671691.9739696311,null,0]
["6.3.13","сечение жилы 800 мм2",3326138.8286334053,null,1663069.4143167026,null,0]
["6.4"," - подземная прокладка в траншее 4-х и более кабелей с медными жилами"]
["6.4.1","сечение жилы 35 мм2",1184615.3846153845,null,592307.69230769225,null,0]
["6.4.2","сечение жилы 50 мм2",1332645.4033771106,null,666322.7016885553,null,0]
["6.4.3","сечение жилы 70 мм2",1627298.311444653,null,813649.15572232648,null,0]
["6.4.4","сечение жилы 95 мм2",1996810.5065666041,null,998405.25328330207,null,0]
["6.4.5","сечение жилы 120 мм2",2242495.3095684801,null,1121247.6547842401,null,0]
["6.4.6","сечение жилы 150 мм2",2672795.4971857411,null,1336397.7485928705,null,0]
["6.4.7","сечение жилы 185 мм2",3048217.6360225142,null,1524108.8180112571,null,0]
["6.4.8","сечение жилы 240 мм2",3639212.0075046904,null,1819606.0037523452,null,0]
["6.4.9","сечение жилы 300 мм2",4277767.3545966232,null,2138883.6772983116,null,0]
["6.4.10","сечение жилы 400 мм2",5332551.5947467163,null,2666275.7973733582,null,0]
["6.4.11","сечение жилы 500 мм2",6486960.6003752341,null,3243480.3001876171,null,0]
["6.4.12","сечение жилы 630 мм2",8149624.7654784238,null,4074812.3827392119,null,0]
["6.4.13","сечение жилы 800 мм2",10022232.645403378,null,5011116.3227016889,null,0]
["6.5","- устройство перехода кабельной линии под автомобильной дорогой, железнодорожными путями плетью из 1 трубы с затягиванием в нее 3-х кабелей с алюминиевыми жилами марки:"]
["6.5.1","сечение жилы 16 мм2",1011951.7430000001,null,505975.87150000007,null,0]
["6.5.2","сечение жилы 25 мм2",1028882.371,null,514441.18550000002,null,0]
["6.5.3","сечение жилы 35 мм2",1055203.4790000001,null,527601.73950000003,null,0]
["6.5.4","сечение жилы 50 мм2",1115038.892,null,557519.446,null,0]
["6.5.5","сечение жилы 70 мм2",1236536.939,null,618268.46950000001,null,0]
["6.5.6","сечение жилы 95 мм2",1435841.8470000001,null,717920.92350000003,null,0]
["6.5.7","сечение жилы 120 мм2",1658252.8929999999,null,829126.44649999996,null,0]
["6.5.8","сечение жилы 150 мм2",2055359.2950000002,null,1027679.6475000001,null,0]
["6.5.9","сечение жилы 185 мм2",2106868.1810000003,null,1053434.0905000002,null,0]
["6.5.10","сечение жилы 240 мм2",2279065.58,null,1139532.79,null,0]
["6.6","- устройство перехода кабельной линии под автомобильной дорогой, железнодорожными путями плетью из 3 труб с затягиванием в нее 3-х кабелей с алюминиевыми жилами марки:"]
["6.6.1","сечение жилы 16 мм2",1570257.59,null,785128.79500000004,null,0]
["6.6.2","сечение жилы 25 мм2",1629595.726,null,814797.86300000001,null,0]
["6.6.3","сечение жилы 35 мм2",1715347.4910000002,null,857673.74550000008,null,0]
["6.6.4","сечение жилы 50 мм2",2145482.4930000002,null,1072741.2465000001,null,0]
["6.6.5","сечение жилы 70 мм2",2726801.9570000004,null,1363400.9785000002,null,0]
["6.6.6","сечение жилы 95 мм2",3928425.27,null,1964212.635,null,0]
["6.6.7","сечение жилы 120 мм2",6623794.5510000009,null,3311897.2755000005,null,0]
["6.6.8","сечение жилы 150 мм2",8478457.0252800006,null,4239228.5126400003,null,0]
["6.6.9","сечение жилы 185 мм2",10852424.992358401,null,5426212.4961792007,null,0]
["6.6.10","сечение жилы 240 мм2",13891103.990218755,null,6945551.9951093774,null,0]
["6.7","- устройство перехода кабельной линии под автомобильной дорогой, железнодорожными путями плетью из 1 трубы с затягиванием в нее 3-х кабелей с медными жилами марки:"]
["6.7.1","сечение жилы 16 мм2",1181836.2270000002,null,590918.11350000009,null,0]
["6.7.2","сечение жилы 25 мм2",1255711.1050000002,null,627855.55250000011,null,0]
["6.7.3","сечение жилы 35 мм2",1294441.06,null,647220.53,null,0]
["6.7.4","сечение жилы 50 мм2",1458103.7679999999,null,729051.88399999996,null,0]
["6.7.5","сечение жилы 70 мм2",1693686.929,null,846843.4645,null,0]
["6.7.6","сечение жилы 95 мм2",2034774.2470000002,null,1017387.1235000001,null,0]
["6.7.7","сечение жилы 120 мм2",2380915.3170000003,null,1190457.6585000001,null,0]
["6.7.8","сечение жилы 150 мм2",2910425.2209999999,null,1455212.6105,null,0]
["6.7.9","сечение жилы 185 мм2",3290658.8220000002,null,1645329.4110000001,null,0]
["6.7.10","сечение жилы 240 мм2",3729652.3330000001,null,1864826.1665000001,null,0]
["6.8","- устройство перехода кабельной линии под автомобильной дорогой, железнодорожными путями плетью из 3 труб с затягиванием в нее 3-х кабелей с медными жилами марки:"]
["6.8.1","сечение жилы 16 мм2",2024319.8250000002,null,1012159.9125000001,null,0]
["6.8.2","сечение жилы 25 мм2",2243099.5730000003,null,1121549.7865000002,null,0]
["6.8.3","сечение жилы 35 мм2",2432632.3560000001,null,1216316.1780000001,null,0]
["6.8.4","сечение жилы 50 мм2",3048865.4570000004,null,1524432.7285000002,null,0]
["6.8.5","сечение жилы 70 мм2",3989417.1460000002,null,1994708.5730000001,null,0]
["6.8.6","сечение жилы 95 мм2",5601527.1510000005,null,2800763.5755000003,null,0]
["6.8.7","сечение жилы 120 мм2",8663518.4570000004,null,4331759.2285000002,null,0]
["6.8.8","сечение жилы 150 мм2",11089303.624960002,null,5544651.8124800008,null,0]
["6.8.9","сечение жилы 185 мм2",14194308.639948802,null,7097154.319974401,null,0]
["6.8.10","сечение жилы 240 мм2",18168715.059134468,null,9084357.5295672342,null,0]
[7,"С3 (35кВ) Стандартизированная тарифная ставка на покрытие расходов сетевой организации на строительство кабельных линий электропередачи на уровне напряжения 35кВ в расчете на 1 км линий"]
["7.1"," - подземная прокладка в траншее кабеля с алюминиевой жилой"]
["7.1.1","сечение жилы 50 мм2",1833622.5596529283,null,916811.27982646413,null,0]
["7.1.2","сечение жилы 70 мм2",1882212.5813449023,null,941106.29067245114,null,0]
["7.1.3","сечение жилы 95 мм2",1945336.2255965292,null,972668.1127982646,null,0]
["7.1.4","сечение жилы 120 мм2",1965292.8416485898,null,982646.42082429491,null,0]
["7.1.5","сечение жилы 150 мм2",2047071.5835140997,null,1023535.7917570499,null,0]
["7.1.6","сечение жилы 185 мм2",2099132.3210412147,null,1049566.1605206074,null,0]
["7.1.7","сечение жилы 240 мм2",2139045.553145336,null,1069522.776572668,null,0]
["7.1.8","сечение жилы 300 мм2",2196312.3644251623,null,1098156.1822125812,null,0]
["7.1.9","сечение жилы 400 мм2",2376789.5878524943,null,1188394.7939262472,null,0]
["7.1.10","сечение жилы 500 мм2",2463340.5639913231,null,1231670.2819956616,null,0]
["7.1.11","сечение жилы 630 мм2",2657917.5704989154,null,1328958.7852494577,null,0]
["7.1.12","сечение жилы 800 мм2",2781995.6616052059,null,1390997.8308026029,null,0]
["7.2","- подземная прокладка в траншее кабеля с медной жилой "]
["7.2.1","сечение жилы 50 мм2",1709943.7148217636,null,854971.85741088178,null,0]
["7.2.2","сечение жилы 70 мм2",1804878.0487804879,null,902439.02439024393,null,0]
["7.2.3","сечение жилы 95 мм2",1927392.1200750468,null,963696.06003752339,null,0]
["7.2.4","сечение жилы 120 мм2",2101125.7035647281,null,1050562.8517823641,null,0]
["7.2.5","сечение жилы 150 мм2",2126454.033771107,null,1063227.0168855535,null,0]
["7.2.6","сечение жилы 185 мм2",2291181.9887429643,null,1145590.9943714822,null,0]
["7.2.7","сечение жилы 240 мм2",2485928.7054409008,null,1242964.3527204504,null,0]
["7.2.8","сечение жилы 300 мм2",2693621.0131332083,null,1346810.5065666041,null,0]
["7.2.9","сечение жилы 400 мм2",3015947.4671669793,null,1507973.7335834897,null,0]
["7.2.10","сечение жилы 500 мм2",3365103.1894934336,null,1682551.5947467168,null,0]
["7.2.11","сечение жилы 630 мм2",3884052.5328330207,null,1942026.2664165103,null,0]
["7.2.12","сечение жилы 800 мм2",4565290.8067542212,null,2282645.4033771106,null,0]
[8,"С3 (110кВ) Стандартизированная тарифная ставка на покрытие расходов сетевой организации на строительство кабельных линий электропередачи на уровне напряжения 110кВ в расчете на 1 км линий"]
["8.1"," - подземная прокладка в траншее кабеля с алюминиевой жилой"]
["8.1.1","сечение жилы 185 мм2",4203904.5553145334,null,2101952.2776572667,null,0]
["8.1.2","сечение жилы 240 мм2",4383514.0997830797,null,2191757.0498915398,null,0]
["8.1.3","сечение жилы 300 мм2",4441648.5900216913,null,2220824.2950108456,null,0]
["8.1.4","сечение жилы 400 мм2",4493058.568329718,null,2246529.284164859,null,0]
["8.1.5","сечение жилы 500 мм2",4610195.2277657259,null,2305097.613882863,null,0]
["8.1.6","сечение жилы 630 мм2",4819739.6963123642,null,2409869.8481561821,null,0]
["8.1.7","сечение жилы 800 мм2",4990021.6919739693,null,2495010.8459869847,null,0]
["8.2","- подземная прокладка в траншее кабеля с медной жилой "]
["8.2.1","сечение жилы 185 мм2",3806941.8386491556,null,1903470.9193245778,null,0]
["8.2.2","сечение жилы 240 мм2",4154596.6228893059,null,2077298.311444653,null,0]
["8.2.3","сечение жилы 300 мм2",4413883.6772983111,null,2206941.8386491556,null,0]
["8.2.4","сечение жилы 400 мм2",4736585.3658536589,null,2368292.6829268294,null,0]
["8.2.5","сечение жилы 500 мм2",5206191.3696060041,null,2603095.684803002,null,0]
["8.2.6","сечение жилы 630 мм2",5889493.4333958719,null,2944746.7166979359,null,0]
["8.2.7","сечение жилы 800 мм2",6638461.538461538,null,3319230.769230769,null,0]
["8.3"," - подземная прокладка в траншее 2-х кабелей с алюминиевой жилой"]
["8.3.1","сечение жилы 185 мм2",6657049.8915401297,null,3328524.9457700648,null,0]
["8.3.2","сечение жилы 240 мм2",7016268.9804772232,null,3508134.4902386116,null,0]
["8.3.3","сечение жилы 300 мм2",7132537.9609544463,null,3566268.9804772232,null,0]
["8.3.4","сечение жилы 400 мм2",7235357.9175704988,null,3617678.9587852494,null,0]
["8.3.5","сечение жилы 500 мм2",7469631.2364425156,null,3734815.6182212578,null,0]
["8.3.6","сечение жилы 630 мм2",7888720.1735357912,null,3944360.0867678956,null,0]
["8.3.7","сечение жилы 800 мм2",8229284.1648590015,null,4114642.0824295008,null,0]
["8.4"," - подземная прокладка в траншее 2-х кабелей с медной жилой "]
["8.4.1","сечение жилы 185 мм2",6966791.7448405251,null,3483395.8724202625,null,0]
["8.4.2","сечение жилы 240 мм2",7662101.3133208258,null,3831050.6566604129,null,0]
["8.4.3","сечение жилы 300 мм2",8180675.4221388362,null,4090337.7110694181,null,0]
["8.4.4","сечение жилы 400 мм2",8826078.7992495317,null,4413039.3996247659,null,0]
["8.4.5","сечение жилы 500 мм2",9765290.8067542221,null,4882645.4033771111,null,0]
["8.4.6","сечение жилы 630 мм2",11131894.934333958,null,5565947.4671669789,null,0]
["8.4.7","сечение жилы 800 мм2",12629831.14446529,null,6314915.572232645,null,0]
[]
[null,"Примечания:"]
[null,"ВЛ - воздушная линия."]
[null,"Коэффициент перевода для воздушной прокладки провода с алюминиевыми жилами = 3,78"]

{"sheet":"Трансформаторные подстанции","index":6,"n_rows":37,"n_cols":8,"rows_kept":37,"cut":false,"hidden":true,"merged":[[31,1,31,7],[23,1,23,7],[6,1,6,7],[0,0,0,7],[7,1,7,7]]}
["Стандартизированная тарифная ставка на покрытие расходов сетевой организации на строительство трансформаторных подстанций"]
[]
[]
[]
[null,"Наименование стандартизированной тарифной ставки","Размер ставки для заявителей с максимальной мощностью свышее 150 кВт, руб./км","наличие","Размер ставки для  заявителей с максимальной мощностью не более 150 кВт, руб./км\nс 01.01.2017г. \nпо 30.09.2017г.","наличие","Размер ставки для заявителей с максимальной мощностью не более 150 кВт, руб./км\nс 01.10.2017г. \nпо 31.12.2017г.","наличие"]
["№ п/п",1,2,3,4,5,6,7]
["10","С4.2(до 35кВ) Стандартизированная тарифная ставка на покрытие расходов сетевой организации на строительство подстанций с уровнем напряжения до 35кВ"]
["10.1","- комплектная трансформаторная подстанция киоскового типа"]
["10.1.1","мощностью 1 х 25 кВА",5695.5690000000004,null,2847.7845000000002,null,0]
["10.1.2","мощностью 1 х 40 кВА",3637.1170000000002,null,1818.5585000000001,null,0]
["10.1.3","мощностью 1 х 63 кВА",2389.9920000000002,null,1194.9960000000001,null,0]
["10.1.4","мощностью 1 х 100 кВА",1892.6270000000002,null,946.31350000000009,null,0]
["10.1.5","мощностью 1 х 160 кВА",1250.6010000000001,null,625.30050000000006,null,0]
["10.1.6","мощностью 1 х 250 кВА",868.48300000000006,null,434.24150000000003,null,0]
["10.1.7","мощностью 1 х 400 кВА",614.65800000000002,null,307.32900000000001,null,0]
["10.1.8","мощностью 1 х 630 кВА",498.00300000000004,null,249.00150000000002,null,0]
["10.1.9","мощностью 1 х 1000 кВА",395.98900000000003,null,197.99450000000002,null,0]
["10.1.10","мощностью 2 х 100 кВА",1361.9870000000001,null,680.99350000000004,null,0]
["10.1.11","мощностью 2 х 160 кВА",912.7360000000001,null,456.36800000000005,null,0]
["10.1.12","мощностью 2 х 250 кВА",646.50300000000004,null,323.25150000000002,null,0]
["10.1.13","мощностью 2 х 400 кВА",451.04400000000004,null,225.52200000000002,null,0]
["10.1.14","мощностью 2 х 630 кВА",364.63900000000007,null,182.31950000000003,null,0]
["10.1.15","мощностью 2 х 1000 кВА",634.88700000000006,null,317.44350000000003,null,0]
["10.2","- комплектная трансформаторная подстанция мачтового, шкафного, столбового типов"]
["10.2.1","мощностью 1 х 16 кВА",5237.3310000000001,null,2618.6655000000001,null,0]
["10.2.2","мощностью 1 х 25 кВА",3449.1820000000002,null,1724.5910000000001,null,0]
["10.2.3","мощностью 1 х 40 кВА",2233.1210000000001,null,1116.5605,null,0]
["10.2.4","мощностью 1 х 63 кВА",1505.5920000000001,null,752.79600000000005,null,0]
["10.2.5","мощностью 1 х 100 кВА",1006.005,null,503.0025,null,0]
["10.2.6","мощностью 1 х 160 кВА",689.55700000000002,null,344.77850000000001,null,0]
["10.2.7","мощностью 1 х 250 кВА",503.22800000000007,null,251.61400000000003,null,0]
["10.3"," - комплектная трансформаторная подстанция блочного типа (бетонные, сэндвич-панели)"]
["10.3.1","мощностью 2 х 630 кВА",1495.769,null,747.8845,null,0]
["10.3.2","мощностью 2 х 1000 кВА",1198.4830000000002,null,599.24150000000009,null,0]
["10.3.3","мощностью 2 х 1250 кВА",1236.9280000000001,null,618.46400000000006,null,0]
["10.3.4","мощностью 2 х 1600 кВА",1026.3220000000001,null,513.16100000000006,null,0]
["10.3.5","мощностью 2 х 2500 кВА",700.13900000000001,null,350.06950000000001,null,0]

{"sheet":"Пункты секционирования","index":7,"n_rows":10,"n_cols":8,"rows_kept":10,"cut":false,"hidden":true,"merged":[[6,1,6,7],[0,0,0,7]]}
["Стандартизированная тарифная ставка на покрытие расходов сетевой организации на строительство пунктов секционирования"]
[]
[]
[]
[null,"Наименование стандартизированной тарифной ставки","Размер ставки для заявителей с максимальной мощностью свыше 150 кВт, руб./км","наличие","Размер ставки для  заявителей с максимальной мощностью не более 150 кВт, руб./км\nс 01.01.2017г. \nпо 30.09.2017г.","наличие","Размер ставки для заявителей с максимальной мощностью не более 150 кВт, руб./км\nс 01.10.2017г. \nпо 31.12.2017г.","наличие"]
["№ п/п",1,2,3,4,5,6,7]
[9,"С4.1(до 35кВ) Стандартизированная тарифная ставка на покрытие расходов сетевой организации на строительство пунктов секционирования (реклоузеров, РП-распределительных пунктов, ПП-переключательных пунктов)"]
["9.1","- 28 ячеек на номинальном напряжении 10 (6)кВ",1135.68,null,567.84,null,0]
["9.2","- 14 ячеек на номинальном напряжении 10 (6)кВ",618.35,null,309.17500000000001,null,0]
["9.3","- 7 ячеек на номинальном напряжении 10 (6)кВ",308.5,null,154.25,null,0]

{"sheet":"Источники питания","index":8,"n_rows":27,"n_cols":11,"rows_kept":27,"cut":false,"hidden":true,"merged":[[22,1,22,7],[17,1,17,7],[7,1,7,7],[12,1,12,7],[0,0,0,7],[6,1,6,7]]}
["Стандартизированная тарифная ставка на покрытие расходов сетевой организации на строительство источников питания"]
[]
[]
[]
[null,"Наименование стандартизированной тарифной ставки","Размер ставки для заявителей с максимальной мощностью свышее 150 кВт, руб./км","наличие","Размер ставки для  заявителей с максимальной мощностью не более 150 кВт, руб./км\nс 01.01.2017г. \nпо 30.09.2017г.","наличие","Размер ставки для заявителей с максимальной мощностью не более 150 кВт, руб./км\nс 01.10.2017г. \nпо 31.12.2017г.","наличие"]
["№ п/п",1,2,3,4,5,6,7]
["11","С4.3 Стандартизированная тарифная ставка на покрытие расходов сетевой организации на строительство центров питания, подстанций уровнем напряжения 35 кВ и выше (ПС)"]
["11.1"," - подстанция 35/10(6) кВ (схема 35-3Н \"Блок (линия-трансформатор) с выключателем\")"]
["11.1.1","мощностью 1 х 6,3 МВА",2408.0354648008474,null,1204.0177324004237,null,0]
["11.1.2","мощностью 1 х 10 МВА",1635.8368169385465,null,817.91840846927323,null,0]
["11.1.3","мощностью 1 х 16 МВА",1054.2143588028098,null,527.10717940140489,null,0]
["11.1.4","мощностью 1 х 25 МВА",734.08442669080443,null,367.04221334540222,null,0]
["11.2"," - подстанция 35/10(6) кВ (схема 35-5Н \"Мостик с выключателями в цепях линий и ремонтной перемычкой со стороны линий\")"]
["11.2.1","мощностью 2 х 6,3 МВА",3239.2768733853759,null,1619.6384366926879,null,0]
["11.2.2","мощностью 2 х 10 МВА",2278.2933784608117,null,1139.1466892304059,null,0]
["11.2.3","мощностью 2 х 16 МВА",1487.5660579704438,null,743.7830289852219,null,0]
["11.2.4","мощностью 2 х 25 МВА",1070.8167512150967,null,535.40837560754835,null,0]
["11.3"," - подстанция 110/10(6) кВ (схема 110-3Н \"Блок (линия-трансформатор) с выключателем\")"]
["11.3.1","мощностью 1 х 6,3 МВА",5867.7940352892638,null,2933.8970176446319,null,0]
["11.3.2","мощностью 1 х 10 МВА",3719.5953836163644,null,1859.7976918081822,null,0]
["11.3.3","мощностью 1 х 16 МВА",2352.2835676617015,null,1176.1417838308507,null,0]
["11.3.4","мощностью 1 х 25 МВА",1527.0754465849388,null,763.53772329246942,null,0,null,null,null," "]
["11.4"," - подстанция 110/10(6) кВ (схема 110-5Н \"Мостик с выключателями в цепях линий и ремонтной перемычкой со стороны линий\")"]
["11.4.1","мощностью 2 х 6,3 МВА",7650.9666207208475,null,3825.4833103604237,null,0]
["11.4.2","мощностью 2 х 10 МВА",4865.8792538223897,null,2432.9396269111949,null,0]
["11.4.3","мощностью 2 х 16 МВА",3096.2474394419414,null,1548.1237197209707,null,0]
["11.4.4","мощностью 2 х 25 МВА",2024.8262878057421,null,1012.4131439028711,null,0]

{"sheet":"ставки за 1кВт","index":9,"n_rows":11,"n_cols":5,"rows_kept":11,"cut":false,"hidden":true,"merged":[[0,0,0,4]]}
["Ставки за единицу максимальной мощности на уровне напряжения ниже 35 кВ и максимальной мощности менее 8900 кВт на покрытие расходов по строительству объектов электросетевого хозяйства от существующих объектов электросетевого хозяйства до присоединяемых энергопринимающих устройств потребителей электрической энергии, объектов электросетевого хозяйства, принадлежащих сетевым организациям и иным лицам («последняя миля»), за технологическое присоединение к электрическим сетям территориальных сетевых организаций Челябинской области,  на 2017 год"]
[]
[null,"Наименование  тарифной ставки","Размер ставки для заявителей с максимальной мощностью свышее 150 кВт, руб./кВт","Размер ставки для  заявителей с максимальной мощностью не более 150 кВт, руб./кВт\nс 01.01.2017г. \nпо 30.09.2017г.","Размер ставки для заявителей с максимальной мощностью не более 150 кВт, руб./кВт\nс 01.10.2017г. \nпо 31.12.2017г."]
[1,2,3,4,5]
[1,"Разработка сетевой организацией проектной документации по строительству «последней мили»",891.52,445.76,0]
[2,"Выполнение ТУ сетевой организацией мероприятий, связанных со строительством «последней мили»","Х","Х","Х"]
["2.1.","строительство воздушных линий",3087.16,1543.58,0]
["2.2.","строительство кабельных линий",2846.81,1423.405,0]
["2.3.","строительство пунктов секционирования",1913.61,956.80499999999995,0]
["2.4.","строительство комплектных трансформаторных подстанция (КТП), распределительных трансформаторных подстанций (РТП) с уровнем напряжения до 35 кВ",4465.46,2232.73,0]
["2.5.","строительство центров питания, подстанций уровнем напряжения 35 кВ и выше (ПС)",16325.44,8162.72,0]

{"sheet":"Расчет1","index":10,"n_rows":27,"n_cols":3,"rows_kept":27,"cut":false,"hidden":true,"merged":[[26,1,26,2],[1,1,1,2],[12,1,12,2],[14,1,14,2],[16,1,16,2],[17,1,17,2]]}
[]
[null,"Расчет платы за технологическое присоединение к электрическим сетям"]
[]
[null,"Наименование сетевой организации:",{"$f":"Калькулятор!C4","v":0}]
[]
[null,"Уровень напряжения, кВ:",{"$f":"Калькулятор!C6","v":0}]
[]
[null,"Максимальная мощность, кВт:",{"$f":"Калькулятор!C8","v":0}]
[]
[null,"Наличие мероприятий по строительству «последней мили» со стороны сетевой организации",{"$f":"Калькулятор!C10","v":0}]
[]
[]
[null,"Расшифровка расчета платы за технологическое присоединение к электрическим сетям"]
[]
[null,"Плата за организационные мероприятия"]
[]
[null,"Ттп = С1  "]
[null,"С1 = С1.1 + С1.2 + С1.3 + С1.4"]
[]
[null,"С1, рублей/за одно присоединение",{"$f":"С1!E5","v":17566.63}]
[]
[null,"Плата за технологическое присоединение, руб. (без НДС)",{"$f":"C20","v":17566.63}]
[]
[]
[]
[]
[null,"Внимание! Данные расчеты носят справочный характер и не могут являться окончательными для оплаты стоимости технологического присоединения. \nКалькулятор расчета платы за технологическое присоединение к электрическим сетям предназначен для примерного расчета стоимости размера платы за технологическое присоединение к электрическим сетям территориальных сетевых организаций Челябинской области."]

{"sheet":"Расчет2","index":11,"n_rows":62,"n_cols":4,"rows_kept":62,"cut":false,"hidden":true,"merged":[[47,1,47,2],[61,1,61,2],[1,1,1,2],[19,1,19,2],[21,1,21,2],[22,3,24,3],[23,1,23,2],[24,1,24,2],[44,1,44,2],[46,1,46,2]]}
[]
[null,"Расчет платы за технологическое присоединение к электрическим сетям"]
[]
[null,"Наименование сетевой организации:",{"$f":"Калькулятор!C4","v":0}]
[]
[null,"Уровень напряжения, кВ:",{"$f":"Калькулятор!C6","v":0}]
[]
[null,"Максимальная мощность, кВт:",{"$f":"Калькулятор!C8","v":0}]
[]
[null,"Наличие мероприятий по строительству «последней мили» со стороны сетевой организации",{"$f":"Калькулятор!C10","v":0}]
[null,{"$f":"Калькулятор!B11","v":"Строительство воздушных линий"},{"$f":"Калькулятор!C11","v":0}]
[null,{"$f":"Калькулятор!B12","v":"Строительство кабельных линий"},{"$f":"Калькулятор!C12","v":0}]
[null,{"$f":"Калькулятор!B13","v":"Строительство трансформаторных подстанций"},{"$f":"Калькулятор!C13","v":0}]
[null,{"$f":"Калькулятор!B14","v":"Строительство пунктов секционирования"},{"$f":"Калькулятор!C14","v":0}]
[null,{"$f":"Калькулятор!B15","v":"Строительство центров питания"},{"$f":"Калькулятор!C15","v":0}]
[]
[]
[]
[]
[null,"Расшифровка расчета платы за технологическое присоединение к электрическим сетям"]
[]
[null,"Плата по стандартизированным тарифным ставкам",null,"Примечания"]
[null,null,null,"Индексы 1 квартала 2017 года определены  письмом Минстроя России от 20.03.2017г. № 8802-ХМ/09 и применяются при расчете платы во 2 квартале 2017 года:\n1) «Воздушная прокладка провода с алюминиевыми жилами» - 3,78\n2) «Подземная прокладка кабеля с алюминиевыми жилами» - 5,07 \n3) «Подземная прокладка кабеля с медными жилами» - 5,16 \n4) «Прочие объекты» - 6,30 (для трансформаторных подстанций, пунктов секционирования, источников питания)"]
[null,"Ттп = С1 + С2,I×L2,I×Zст.изм. + С3,I×L3,I×Zст.изм. + С4,I×NI,J×Zст.изм."]
[]
[null,"С1, рублей/за одно присоединение",{"$f":"С1!E5","v":17566.63},"Единая для всех ТСО"]
[null,"Плата за организационные мероприятия, руб. (без НДС)",{"$f":"C26","v":17566.63},"Единая для всех ТСО"]
[null,"Плата за строительство воздушных линий, руб.",746984.35,"(в ценах 2001 года)"]
[null,"Индекс изменения сметной стоимости",3.78]
[null,"Плата за строительство воздушных линий, руб.",{"$f":"C28*C29","v":2823600.8429999999},"В текущих ценах"]
[null,"Плата за строительство кабельных линий, руб.",0,"(в ценах 2001 года)"]
[null,"Индекс изменения сметной стоимости",0]
[null,"Плата за строительство кабельных линий, руб.",{"$f":"C31*C32","v":0},"В текущих ценах"]
[null,"Плата за строительство пунктов секционирования, руб.",0,"(в ценах 2001 года)"]
[null,"Индекс изменения сметной стоимости",0]
[null,"Плата за строительство пунктов секционирования, руб.",{"$f":"C34*C35","v":0},"В текущих ценах"]
[null,"Плата за строительство трансформаторных подстанций, руб.",13619.87,"(в ценах 2001 года)"]
[null,"Индекс изменения сметной стоимости",6.3]
[null,"Плата за строительство трансформаторных подстанций, руб.",{"$f":"C37*C38","v":85805.180999999997},"В текущих ценах"]
[null,"Плата за строительство источников питания, руб.",0,"(в ценах 2001 года)"]
[null,"Индекс изменения сметной стоимости",0]
[null,"Плата за строительство источников питания, руб.",{"$f":"C40*C41","v":0},"В текущих ценах"]
[null,"Плата по стандартизированным тарифным ставкам с учетом индексов изменения сметной стоимости, руб.",{"$f":"C27+C30+C33+C36+C39+C42","v":2926972.6539999996}]
[]
[null,"Плата по ставкам за единицу максимальной мощности",null,"Примечания"]
[]
[null,"Ттп = С1 + (С2×NI,J) + (С3×NI,J) + (С4.1×NI,J) + (С4.2×NI,J) + (С4.3×NI,J) + (С5×NI,J)"]
[]
[null,"С1, рублей/за одно присоединение",{"$f":"С1!E5","v":17566.63},"Единая для всех ТСО"]
[null,"Плата за организационные мероприятия, руб. (без НДС)",{"$f":"C49","v":17566.63},"Единая для всех ТСО"]
[null,"Плата за проектные работы",{"$f":"Калькулятор!$C$8*IF(Калькулятор!$C$8>150,'ставки за 1кВт'!C5,'ставки за 1кВт'!D5)","v":0},"В текущих ценах"]
[null,"Плата за строительство воздушных линий, руб.",{"$f":"IF(Калькулятор!C11 = \"Да\",Калькулятор!$C$8*IF(Калькулятор!$C$8>150,'ставки за 1кВт'!C7,'ставки за 1кВт'!D7),0)","v":0},"В текущих ценах"]
[null,"Плата за строительство кабельных линий, руб.",{"$f":"IF(Калькулятор!C12 = \"Да\",Калькулятор!$C$8*IF(Калькулятор!$C$8>150,'ставки за 1кВт'!C8,'ставки за 1кВт'!D8),0)","v":0},"В текущих ценах"]
[null,"Плата за строительство пунктов секционирования, руб.",{"$f":"IF(Калькулятор!C13 = \"Да\",Калькулятор!$C$8*IF(Калькулятор!$C$8>150,'ставки за 1кВт'!C9,'ставки за 1кВт'!D9),0)","v":0},"В текущих ценах"]
[null,"Плата за строительство трансформаторных подстанций, руб.",{"$f":"IF(Калькулятор!C14 = \"Да\",Калькулятор!$C$8*IF(Калькулятор!$C$8>150,'ставки за 1кВт'!C10,'ставки за 1кВт'!D10),0)","v":0},"В текущих ценах"]
[null,"Плата за строительство источников питания, руб.",{"$f":"IF(Калькулятор!C15 = \"Да\",Калькулятор!$C$8*IF(Калькулятор!$C$8>150,'ставки за 1кВт'!C11,'ставки за 1кВт'!D11),0)","v":0},"В текущих ценах"]
[null,"Плата по ставкам за единицу максимальной мощности с учетом коэффициента перевода, руб. (без НДС, без налога на прибыль)",{"$f":"C50+C51+C52+C53+C54+C55+C56","v":17566.63}]
[]
[]
[]
[]
[null,"Внимание! Данные расчеты носят справочный характер и не могут являться окончательными для оплаты стоимости технологического присоединения. \nКалькулятор расчета платы за технологическое присоединение к электрическим сетям предназначен для примерного расчета стоимости размера платы за технологическое присоединение к электрическим сетям территориальных сетевых организаций Челябинской области."]